[Event "Titled Tuesday Blitz May 2 Early 2023"]
[White "Delorme, Alban"]
[Black "Tarasova, Viktoriya"]
[WhiteFideId "623636"]
[BlackFideId "4175840"]
[WhiteElo "2196"]
[BlackElo "2182"]
[Result "1/2-1/2"]
[Round "08"]
[TimeControl "180+2"]
[Date "2023.05.02"]
[WhiteClock "0:00:10"]
[BlackClock "0:00:13"]

1. e4 {[%clk 0:03:00]}  e5 {[%clk 0:02:59]} 2. Nf3 {[%clk 0:03:01]}  Nc6 {[%clk 0:02:59]} 3. Bc4 {[%clk 0:03:01]}  Bc5 {[%clk 0:02:59]} 4. c3 {[%clk 0:03:01]}  Nf6 {[%clk 0:02:59]} 5. d4 {[%clk 0:03:02]}  exd4 {[%clk 0:02:59]} 6. b4 {[%clk 0:03:02]}  Bb6 {[%clk 0:02:56]} 7. e5 {[%clk 0:03:03]}  d5 {[%clk 0:02:52]} 8. exf6 {[%clk 0:03:03]}  dxc4 {[%clk 0:02:52]} 9. Qe2+ {[%clk 0:03:04]}  Be6 {[%clk 0:02:49]} 10. b5 {[%clk 0:03:04]}  d3 {[%clk 0:02:20]} 11. Qe4 {[%clk 0:03:04]}  O-O {[%clk 0:01:32]} 12. bxc6 {[%clk 0:02:44]}  Bd5 {[%clk 0:01:30]} 13. Qf4 {[%clk 0:02:37]}  Re8+ {[%clk 0:01:28]} 14. Be3 {[%clk 0:02:36]}  Bxf3 {[%clk 0:00:50]} 15. Qxf3 {[%clk 0:02:29]}  d2+ {[%clk 0:00:35]} 16. Nxd2 {[%clk 0:02:21]}  Bxe3 {[%clk 0:00:35]} 17. fxe3 {[%clk 0:01:57]}  Qd3 {[%clk 0:00:35]} 18. e4 {[%clk 0:01:51]}  bxc6 {[%clk 0:00:27]} 19. Qxd3 {[%clk 0:01:47]}  cxd3 {[%clk 0:00:27]} 20. fxg7 {[%clk 0:01:47]}  Kxg7 {[%clk 0:00:26]} 21. O-O {[%clk 0:01:47]}  Rab8 {[%clk 0:00:24]} 22. Rab1 {[%clk 0:01:46]}  Rb5 {[%clk 0:00:22]} 23. c4 {[%clk 0:01:44]}  Ra5 {[%clk 0:00:21]} 24. Rb3 {[%clk 0:01:44]}  Rxa2 {[%clk 0:00:21]} 25. Rxd3 {[%clk 0:01:44]}  Rc2 {[%clk 0:00:21]} 26. Rd7 {[%clk 0:01:41]}  Rf8 {[%clk 0:00:21]} 27. Nf3 {[%clk 0:01:41]}  a5 {[%clk 0:00:19]} 28. Rxc7 {[%clk 0:01:41]}  a4 {[%clk 0:00:19]} 29. Rxc6 {[%clk 0:01:42]}  a3 {[%clk 0:00:20]} 30. Ra6 {[%clk 0:01:42]}  a2 {[%clk 0:00:20]} 31. Nd4 {[%clk 0:01:40]}  Rb2 {[%clk 0:00:19]} 32. Nf5+ {[%clk 0:01:40]}  Kh8 {[%clk 0:00:18]} 33. h3 {[%clk 0:01:40]}  Rg8 {[%clk 0:00:16]} 34. Kh1 {[%clk 0:01:18]}  Rgxg2 {[%clk 0:00:14]} 35. Ra8+ {[%clk 0:01:18]}  Rg8 {[%clk 0:00:14]} 36. Rxg8+ {[%clk 0:00:37]}  Kxg8 {[%clk 0:00:14]} 37. Rg1+ {[%clk 0:00:38]}  Kf8 {[%clk 0:00:14]} 38. Nd4 {[%clk 0:00:34]}  Rb1 {[%clk 0:00:13]} 39. Nc2 {[%clk 0:00:33]}  Rb2 {[%clk 0:00:10]} 40. Na1 {[%clk 0:00:31]}  Ke7 {[%clk 0:00:10]} 41. c5 {[%clk 0:00:13]}  Kd7 {[%clk 0:00:10]} 42. Rg2 {[%clk 0:00:07]}  Rb1+ {[%clk 0:00:08]} 43. Rg1 {[%clk 0:00:08]}  Rb2 {[%clk 0:00:09]} 44. Rg2 {[%clk 0:00:05]}  Rb1+ {[%clk 0:00:09]} 45. Kh2 {[%clk 0:00:05]}  Rxa1 {[%clk 0:00:08]} 46. Rc2 {[%clk 0:00:06]}  Kc6 {[%clk 0:00:08]} 47. Kg2 {[%clk 0:00:06]}  h6 {[%clk 0:00:06]} 48. Kh2 {[%clk 0:00:07]}  Re1 {[%clk 0:00:03]} 49. Rxa2 {[%clk 0:00:07]}  Kxc5 {[%clk 0:00:03]} 50. Rf2 {[%clk 0:00:08]}  Rxe4 {[%clk 0:00:02]} 51. Rxf7 {[%clk 0:00:08]}  Re6 {[%clk 0:00:03]} 52. Kg3 {[%clk 0:00:09]}  Kd5 {[%clk 0:00:03]} 53. Kf4 {[%clk 0:00:08]}  Kd6 {[%clk 0:00:03]} 54. Kf5 {[%clk 0:00:09]}  Re5+ {[%clk 0:00:03]} 55. Kg6 {[%clk 0:00:09]}  Re6+ {[%clk 0:00:04]} 56. Kh5 {[%clk 0:00:09]}  Re3 {[%clk 0:00:04]} 57. h4 {[%clk 0:00:09]}  Re6 {[%clk 0:00:05]} 58. Rg7 {[%clk 0:00:08]}  Ke5 {[%clk 0:00:05]} 59. Rg1 {[%clk 0:00:07]}  Rf6 {[%clk 0:00:05]} 60. Re1+ {[%clk 0:00:07]}  Kd6 {[%clk 0:00:06]} 61. Rd1+ {[%clk 0:00:08]}  Ke7 {[%clk 0:00:07]} 62. Re1+ {[%clk 0:00:08]}  Kf7 {[%clk 0:00:07]} 63. Ra1 {[%clk 0:00:09]}  Kg7 {[%clk 0:00:08]} 64. Ra7+ {[%clk 0:00:09]}  Kg8 {[%clk 0:00:09]} 65. Kg4 {[%clk 0:00:09]}  Rg6+ {[%clk 0:00:09]} 66. Kf5 {[%clk 0:00:09]}  Rb6 {[%clk 0:00:09]} 67. h5 {[%clk 0:00:08]}  Kh8 {[%clk 0:00:10]} 68. Rc7 {[%clk 0:00:08]}  Kg8 {[%clk 0:00:10]} 69. Ra7 {[%clk 0:00:07]}  Kh8 {[%clk 0:00:10]} 70. Ra5 {[%clk 0:00:05]}  Kg8 {[%clk 0:00:10]} 71. Rc5 {[%clk 0:00:06]}  Kh8 {[%clk 0:00:11]} 72. Kg4 {[%clk 0:00:06]}  Kg8 {[%clk 0:00:11]} 73. Rc4 {[%clk 0:00:06]}  Kg7 {[%clk 0:00:11]} 74. Rf4 {[%clk 0:00:06]}  Rc6 {[%clk 0:00:11]} 75. Kh4 {[%clk 0:00:06]}  Rb6 {[%clk 0:00:11]} 76. Rc4 {[%clk 0:00:06]}  Ra6 {[%clk 0:00:11]} 77. Kg4 {[%clk 0:00:06]}  Kh7 {[%clk 0:00:12]} 78. Kf5 {[%clk 0:00:07]}  Rb6 {[%clk 0:00:12]} 79. Rc7+ {[%clk 0:00:07]}  Kg8 {[%clk 0:00:11]} 80. Re7 {[%clk 0:00:07]}  Kh8 {[%clk 0:00:11]} 81. Re6 {[%clk 0:00:04]}  Rxe6 {[%clk 0:00:10]} 82. Kxe6 {[%clk 0:00:05]}  Kh7 {[%clk 0:00:11]} 83. Kf7 {[%clk 0:00:06]}  Kh8 {[%clk 0:00:11]} 84. Kg6 {[%clk 0:00:07]}  Kg8 {[%clk 0:00:11]} 85. Kxh6 {[%clk 0:00:07]}  Kh8 {[%clk 0:00:12]} 86. Kg6 {[%clk 0:00:08]}  Kg8 {[%clk 0:00:13]} 87. h6 {[%clk 0:00:09]}  Kh8 {[%clk 0:00:13]} 88. h7 {[%clk 0:00:10]} 1/2-1/2


[Site "https://www.chess.com"]

[Event "Titled Tuesday Blitz May 2 Early 2023"]
[White "Liu, Xiangyi"]
[Black "Rottenwohrer Suarez, Juan"]
[WhiteFideId "8605718"]
[BlackFideId "32068182"]
[WhiteElo "2323"]
[BlackElo "2174"]
[Result "1-0"]
[Round "08"]
[TimeControl "180+2"]
[Date "2023.05.02"]
[WhiteClock "0:00:17"]
[BlackClock "0:00:02"]

1. e4 {[%clk 0:03:00]}  c5 {[%clk 0:02:59]} 2. Nc3 {[%clk 0:03:00]}  g6 {[%clk 0:03:00]} 3. d4 {[%clk 0:02:46]}  cxd4 {[%clk 0:02:59]} 4. Qxd4 {[%clk 0:02:47]}  Nf6 {[%clk 0:02:58]} 5. Bg5 {[%clk 0:02:15]}  Nc6 {[%clk 0:02:58]} 6. Qd2 {[%clk 0:02:16]}  Bg7 {[%clk 0:02:44]} 7. f4 {[%clk 0:01:58]}  d6 {[%clk 0:02:36]} 8. Nf3 {[%clk 0:01:58]}  Bg4 {[%clk 0:02:32]} 9. Be2 {[%clk 0:01:52]}  O-O {[%clk 0:02:27]} 10. h3 {[%clk 0:01:46]}  Bxf3 {[%clk 0:02:26]} 11. Bxf3 {[%clk 0:01:47]}  Rc8 {[%clk 0:02:19]} 12. O-O-O {[%clk 0:01:41]}  Qa5 {[%clk 0:02:11]} 13. Kb1 {[%clk 0:01:36]}  Nd7 {[%clk 0:01:42]} 14. Nd5 {[%clk 0:01:30]}  Qxd2 {[%clk 0:01:31]} 15. Rxd2 {[%clk 0:01:31]}  f6 {[%clk 0:01:00]} 16. Bh4 {[%clk 0:01:31]}  Rfe8 {[%clk 0:00:54]} 17. Bg4 {[%clk 0:01:23]}  Red8 {[%clk 0:00:34]} 18. Rhd1 {[%clk 0:01:13]}  Kf8 {[%clk 0:00:27]} 19. e5 {[%clk 0:00:47]}  f5 {[%clk 0:00:12]} 20. exd6 {[%clk 0:00:45]}  exd6 {[%clk 0:00:03]} 21. Bxd8 {[%clk 0:00:39]}  fxg4 {[%clk 0:00:03]} 22. Bc7 {[%clk 0:00:36]}  gxh3 {[%clk 0:00:03]} 23. Bxd6+ {[%clk 0:00:36]}  Kf7 {[%clk 0:00:03]} 24. gxh3 {[%clk 0:00:36]}  Nf6 {[%clk 0:00:02]} 25. Nxf6 {[%clk 0:00:22]}  Bxf6 {[%clk 0:00:02]} 26. Bc5 {[%clk 0:00:20]}  b6 {[%clk 0:00:01]} 27. Rd7+ {[%clk 0:00:20]}  Kg8 {[%clk 0:00:01]} 28. Bg1 {[%clk 0:00:18]}  Re8 {[%clk 0:00:02]} 29. R7d6 {[%clk 0:00:17]} 1-0


[Site "https://www.chess.com"]

[Event "Titled Tuesday Blitz May 2 Early 2023"]
[White "Sai Han Thiha"]
[Black "Bruedigam, Martin"]
[WhiteFideId "13012290"]
[BlackFideId "24608033"]
[WhiteElo "1954"]
[BlackElo "2331"]
[Result "0-1"]
[Round "08"]
[TimeControl "180+2"]
[Date "2023.05.02"]
[WhiteClock "0:00:02"]
[BlackClock "0:00:15"]

1. d4 {[%clk 0:03:00]}  d5 {[%clk 0:02:59]} 2. c4 {[%clk 0:03:01]}  e6 {[%clk 0:02:59]} 3. Nc3 {[%clk 0:03:01]}  a6 {[%clk 0:02:59]} 4. cxd5 {[%clk 0:03:01]}  exd5 {[%clk 0:03:00]} 5. Nf3 {[%clk 0:03:02]}  Nf6 {[%clk 0:03:00]} 6. Bg5 {[%clk 0:03:02]}  Be6 {[%clk 0:03:00]} 7. e3 {[%clk 0:03:02]}  Nbd7 {[%clk 0:03:00]} 8. Bd3 {[%clk 0:03:02]}  Bd6 {[%clk 0:02:58]} 9. Bf4 {[%clk 0:03:02]}  Qe7 {[%clk 0:02:51]} 10. O-O {[%clk 0:02:42]}  O-O {[%clk 0:02:48]} 11. h3 {[%clk 0:02:36]}  c6 {[%clk 0:02:45]} 12. Re1 {[%clk 0:02:29]}  Rfe8 {[%clk 0:02:42]} 13. Rb1 {[%clk 0:02:24]}  Nf8 {[%clk 0:02:34]} 14. Bxd6 {[%clk 0:01:53]}  Qxd6 {[%clk 0:02:35]} 15. b4 {[%clk 0:01:54]}  b5 {[%clk 0:02:10]} 16. a4 {[%clk 0:01:46]}  N6d7 {[%clk 0:01:52]} 17. a5 {[%clk 0:01:45]}  Ng6 {[%clk 0:01:44]} 18. Na2 {[%clk 0:01:27]}  Ne7 {[%clk 0:01:41]} 19. Qc2 {[%clk 0:01:24]}  g6 {[%clk 0:01:41]} 20. Nc1 {[%clk 0:01:23]}  Bf5 {[%clk 0:01:40]} 21. Nb3 {[%clk 0:00:55]}  Bxd3 {[%clk 0:01:37]} 22. Qxd3 {[%clk 0:00:56]}  Qxb4 {[%clk 0:01:34]} 23. Rec1 {[%clk 0:00:48]}  Qd6 {[%clk 0:01:31]} 24. Nc5 {[%clk 0:00:38]}  Nxc5 {[%clk 0:01:29]} 25. dxc5 {[%clk 0:00:37]}  Qc7 {[%clk 0:01:23]} 26. Rb4 {[%clk 0:00:37]}  Qxa5 {[%clk 0:01:19]} 27. Rf4 {[%clk 0:00:35]}  Qc7 {[%clk 0:01:17]} 28. Nd4 {[%clk 0:00:33]}  a5 {[%clk 0:01:15]} 29. g4 {[%clk 0:00:20]}  a4 {[%clk 0:01:14]} 30. Qa3 {[%clk 0:00:17]}  Reb8 {[%clk 0:01:09]} 31. Nc2 {[%clk 0:00:17]}  Qe5 {[%clk 0:00:58]} 32. Rd4 {[%clk 0:00:18]}  Kf8 {[%clk 0:00:44]} 33. Nb4 {[%clk 0:00:18]}  Rc8 {[%clk 0:00:42]} 34. f4 {[%clk 0:00:18]}  Qe6 {[%clk 0:00:39]} 35. Kf2 {[%clk 0:00:18]}  Ng8 {[%clk 0:00:38]} 36. Nd3 {[%clk 0:00:16]}  Nf6 {[%clk 0:00:37]} 37. Ne5 {[%clk 0:00:16]}  Nd7 {[%clk 0:00:36]} 38. Nd3 {[%clk 0:00:15]}  Re8 {[%clk 0:00:34]} 39. Re1 {[%clk 0:00:14]}  Nf6 {[%clk 0:00:29]} 40. Ne5 {[%clk 0:00:14]}  Kg8 {[%clk 0:00:28]} 41. Kf3 {[%clk 0:00:13]}  Ne4 {[%clk 0:00:22]} 42. h4 {[%clk 0:00:12]}  f6 {[%clk 0:00:20]} 43. Nd3 {[%clk 0:00:12]}  Qe7 {[%clk 0:00:20]} 44. h5 {[%clk 0:00:10]}  Nd2+ {[%clk 0:00:18]} 45. Kf2 {[%clk 0:00:07]}  Nc4 {[%clk 0:00:19]} 46. Qc3 {[%clk 0:00:06]}  a3 {[%clk 0:00:18]} 47. hxg6 {[%clk 0:00:06]}  hxg6 {[%clk 0:00:19]} 48. f5 {[%clk 0:00:06]}  g5 {[%clk 0:00:18]} 49. Rh1 {[%clk 0:00:05]}  Kg7 {[%clk 0:00:19]} 50. Nb4 {[%clk 0:00:06]}  Qc7 {[%clk 0:00:17]} 51. Rdd1 {[%clk 0:00:05]}  Rh8 {[%clk 0:00:17]} 52. Rxh8 {[%clk 0:00:04]}  Rxh8 {[%clk 0:00:17]} 53. Na6 {[%clk 0:00:05]}  Qh2+ {[%clk 0:00:15]} 54. Ke1 {[%clk 0:00:05]}  Qg2 {[%clk 0:00:15]} 55. Qxf6+ {[%clk 0:00:02]}  Kxf6 {[%clk 0:00:15]} 0-1


[Site "https://www.chess.com"]

[Event "Titled Tuesday Blitz May 2 Early 2023"]
[White "Bilan, Danila"]
[Black "Myers, Dominique"]
[WhiteFideId "24161918"]
[BlackFideId "2041715"]
[WhiteElo "2182"]
[BlackElo "1934"]
[Result "0-1"]
[Round "08"]
[TimeControl "180+2"]
[Date "2023.05.02"]
[WhiteClock "0:00:12"]
[BlackClock "0:01:49"]

1. d4 {[%clk 0:03:00]}  Nf6 {[%clk 0:02:59]} 2. Nf3 {[%clk 0:03:00]}  c5 {[%clk 0:02:59]} 3. e3 {[%clk 0:03:01]}  e6 {[%clk 0:02:59]} 4. c3 {[%clk 0:03:01]}  d5 {[%clk 0:02:59]} 5. Nbd2 {[%clk 0:03:01]}  Nc6 {[%clk 0:03:00]} 6. Bd3 {[%clk 0:03:01]}  Bd6 {[%clk 0:03:00]} 7. O-O {[%clk 0:03:01]}  O-O {[%clk 0:03:01]} 8. dxc5 {[%clk 0:03:01]}  Bxc5 {[%clk 0:03:01]} 9. e4 {[%clk 0:03:02]}  dxe4 {[%clk 0:03:01]} 10. Nxe4 {[%clk 0:03:03]}  Nxe4 {[%clk 0:03:01]} 11. Bxe4 {[%clk 0:03:03]}  Qc7 {[%clk 0:02:55]} 12. Ng5 {[%clk 0:02:42]}  f5 {[%clk 0:02:54]} 13. Bc2 {[%clk 0:02:34]}  h6 {[%clk 0:02:51]} 14. Nf3 {[%clk 0:02:30]}  e5 {[%clk 0:02:50]} 15. Qd5+ {[%clk 0:02:29]}  Qf7 {[%clk 0:02:45]} 16. Qxc5 {[%clk 0:02:28]}  e4 {[%clk 0:02:45]} 17. Ne5 {[%clk 0:02:23]}  Qf6 {[%clk 0:02:42]} 18. Bb3+ {[%clk 0:02:15]}  Kh7 {[%clk 0:02:36]} 19. Nxc6 {[%clk 0:02:04]}  bxc6 {[%clk 0:02:37]} 20. Bf4 {[%clk 0:02:02]}  Ba6 {[%clk 0:02:35]} 21. Rfd1 {[%clk 0:01:55]}  Bd3 {[%clk 0:02:34]} 22. Bc4 {[%clk 0:01:54]}  Rad8 {[%clk 0:02:33]} 23. Bxd3 {[%clk 0:01:48]}  exd3 {[%clk 0:02:34]} 24. Rd2 {[%clk 0:01:35]}  Rfe8 {[%clk 0:02:33]} 25. Rad1 {[%clk 0:01:26]}  Re2 {[%clk 0:02:26]} 26. h3 {[%clk 0:01:13]}  Rd5 {[%clk 0:02:26]} 27. Qxa7 {[%clk 0:01:05]}  Qh4 {[%clk 0:02:10]} 28. Bg3 {[%clk 0:00:49]}  Qe4 {[%clk 0:02:10]} 29. f3 {[%clk 0:00:40]}  Qc4 {[%clk 0:02:07]} 30. Rxe2 {[%clk 0:00:24]}  dxe2 {[%clk 0:02:07]} 31. Re1 {[%clk 0:00:24]}  Rd2 {[%clk 0:02:05]} 32. Bf2 {[%clk 0:00:20]}  Rxb2 {[%clk 0:02:04]} 33. Bd4 {[%clk 0:00:19]}  Qg8 {[%clk 0:02:00]} 34. a4 {[%clk 0:00:16]}  Rd2 {[%clk 0:01:58]} 35. Qe7 {[%clk 0:00:15]}  c5 {[%clk 0:01:56]} 36. Bxc5 {[%clk 0:00:12]}  Kg6 {[%clk 0:01:52]} 37. Bd4 {[%clk 0:00:11]}  Kh5 {[%clk 0:01:51]} 38. Rxe2 {[%clk 0:00:11]}  Rxe2 {[%clk 0:01:49]} 39. Qxe2 {[%clk 0:00:11]}  Qb3 {[%clk 0:01:49]} 40. f4+ {[%clk 0:00:12]}  Kg6 {[%clk 0:01:48]} 41. Qe6+ {[%clk 0:00:12]}  Qxe6 {[%clk 0:01:49]} 0-1


[Site "https://www.chess.com"]

[Event "Titled Tuesday Blitz May 2 Early 2023"]
[White "Kozelov, Roman"]
[Black "Belenkaya, Dina"]
[WhiteFideId "14133377"]
[BlackFideId "24142654"]
[WhiteElo "2149"]
[BlackElo "2208"]
[Result "0-1"]
[Round "08"]
[TimeControl "180+2"]
[Date "2023.05.02"]
[WhiteClock "0:01:20"]
[BlackClock "0:01:40"]

1. e4 {[%clk 0:03:00]}  d5 {[%clk 0:02:56]} 2. exd5 {[%clk 0:03:00]}  Qxd5 {[%clk 0:02:52]} 3. Nc3 {[%clk 0:02:59]}  Qe5+ {[%clk 0:02:48]} 4. Be2 {[%clk 0:02:56]}  c6 {[%clk 0:02:46]} 5. Nf3 {[%clk 0:02:54]}  Qc7 {[%clk 0:02:47]} 6. d4 {[%clk 0:02:53]}  Nf6 {[%clk 0:02:47]} 7. h3 {[%clk 0:02:52]}  Bf5 {[%clk 0:02:43]} 8. g4 {[%clk 0:02:48]}  Bd7 {[%clk 0:02:39]} 9. Bg5 {[%clk 0:02:39]}  h5 {[%clk 0:02:28]} 10. Ne5 {[%clk 0:02:21]}  hxg4 {[%clk 0:02:21]} 11. h4 {[%clk 0:02:20]}  Na6 {[%clk 0:02:08]} 12. Qd2 {[%clk 0:02:17]}  Nb4 {[%clk 0:02:05]} 13. O-O-O {[%clk 0:02:11]}  Be6 {[%clk 0:01:59]} 14. a3 {[%clk 0:02:10]}  Nbd5 {[%clk 0:01:58]} 15. f4 {[%clk 0:01:45]}  gxf3 {[%clk 0:01:45]} 16. Bxf3 {[%clk 0:01:43]}  Nxc3 {[%clk 0:01:40]} 17. Qxc3 {[%clk 0:01:40]}  Nd5 {[%clk 0:01:40]} 18. Rhf1 {[%clk 0:01:20]} 0-1


[Site "https://www.chess.com"]

[Event "Titled Tuesday Blitz May 2 Early 2023"]
[White "Panico, Nick"]
[Black "Baches Garcia, Guillermo"]
[WhiteFideId "2026724"]
[BlackFideId "2209764"]
[WhiteElo "1982"]
[BlackElo "2334"]
[Result "0-1"]
[Round "08"]
[TimeControl "180+2"]
[Date "2023.05.02"]
[WhiteClock "0:00:59"]
[BlackClock "0:00:14"]

1. f4 {[%clk 0:02:59]}  d5 {[%clk 0:02:58]} 2. Nf3 {[%clk 0:02:59]}  g6 {[%clk 0:02:59]} 3. e3 {[%clk 0:02:58]}  Bg7 {[%clk 0:02:58]} 4. Be2 {[%clk 0:02:58]}  Nh6 {[%clk 0:02:55]} 5. O-O {[%clk 0:02:54]}  O-O {[%clk 0:02:55]} 6. d3 {[%clk 0:02:52]}  Nf5 {[%clk 0:02:52]} 7. Nc3 {[%clk 0:02:51]}  c6 {[%clk 0:02:47]} 8. e4 {[%clk 0:02:47]}  Qb6+ {[%clk 0:02:39]} 9. Kh1 {[%clk 0:02:39]}  dxe4 {[%clk 0:02:36]} 10. dxe4 {[%clk 0:02:37]}  Ne3 {[%clk 0:02:33]} 11. Bxe3 {[%clk 0:02:36]}  Qxe3 {[%clk 0:02:34]} 12. Qd2 {[%clk 0:02:31]}  Qxd2 {[%clk 0:02:25]} 13. Nxd2 {[%clk 0:02:32]}  Rd8 {[%clk 0:02:22]} 14. Bd3 {[%clk 0:02:28]}  Na6 {[%clk 0:02:18]} 15. a3 {[%clk 0:02:26]}  Nc5 {[%clk 0:02:15]} 16. Rf3 {[%clk 0:02:23]}  b6 {[%clk 0:02:04]} 17. Re1 {[%clk 0:02:16]}  Ba6 {[%clk 0:01:57]} 18. Bxa6 {[%clk 0:02:14]}  Rxd2 {[%clk 0:01:56]} 19. Bc4 {[%clk 0:02:07]}  Rxc2 {[%clk 0:01:50]} 20. e5 {[%clk 0:02:07]}  Rxb2 {[%clk 0:01:44]} 21. f5 {[%clk 0:02:08]}  gxf5 {[%clk 0:01:37]} 22. Rxf5 {[%clk 0:02:07]}  e6 {[%clk 0:01:36]} 23. Rf3 {[%clk 0:02:04]}  Rd8 {[%clk 0:01:33]} 24. Ne4 {[%clk 0:02:04]}  Nxe4 {[%clk 0:01:31]} 25. Rxe4 {[%clk 0:02:04]}  b5 {[%clk 0:01:17]} 26. Bf1 {[%clk 0:01:56]}  Rd1 {[%clk 0:01:09]} 27. Kg1 {[%clk 0:01:53]}  Rbb1 {[%clk 0:00:56]} 28. a4 {[%clk 0:01:52]}  Re1 {[%clk 0:00:52]} 29. Rg4 {[%clk 0:01:46]}  Kf8 {[%clk 0:00:47]} 30. axb5 {[%clk 0:01:46]}  cxb5 {[%clk 0:00:47]} 31. Rd4 {[%clk 0:01:39]}  Bxe5 {[%clk 0:00:46]} 32. Rd7 {[%clk 0:01:37]}  f5 {[%clk 0:00:39]} 33. g3 {[%clk 0:01:35]}  Rbd1 {[%clk 0:00:38]} 34. Rxh7 {[%clk 0:01:35]}  a5 {[%clk 0:00:28]} 35. g4 {[%clk 0:01:35]}  f4 {[%clk 0:00:27]} 36. g5 {[%clk 0:01:34]}  a4 {[%clk 0:00:26]} 37. g6 {[%clk 0:01:33]}  a3 {[%clk 0:00:26]} 38. Rf7+ {[%clk 0:01:33]}  Kg8 {[%clk 0:00:26]} 39. Rxa3 {[%clk 0:01:12]}  Rxf1+ {[%clk 0:00:24]} 40. Kg2 {[%clk 0:01:13]}  Rg1+ {[%clk 0:00:20]} 41. Kf3 {[%clk 0:01:11]}  Rxg6 {[%clk 0:00:19]} 42. Rb7 {[%clk 0:01:09]}  Rd8 {[%clk 0:00:18]} 43. Ke4 {[%clk 0:01:07]}  Bg7 {[%clk 0:00:16]} 44. h4 {[%clk 0:01:07]}  e5 {[%clk 0:00:16]} 45. Raa7 {[%clk 0:01:07]}  Rg3 {[%clk 0:00:16]} 46. h5 {[%clk 0:01:06]}  Rf8 {[%clk 0:00:15]} 47. Rxb5 {[%clk 0:01:02]}  f3 {[%clk 0:00:15]} 48. h6 {[%clk 0:01:01]}  Bxh6 {[%clk 0:00:14]} 49. Rb6 {[%clk 0:01:02]}  Bg7 {[%clk 0:00:14]} 50. Ke3 {[%clk 0:01:01]}  f2+ {[%clk 0:00:14]} 51. Ke2 {[%clk 0:00:59]}  f1=Q+ {[%clk 0:00:14]} 52. Kd2 {[%clk 0:00:59]}  Rf2# {[%clk 0:00:14]} 0-1


[Site "https://www.chess.com"]

[Event "Titled Tuesday Blitz May 2 Early 2023"]
[White "Pandey Srishti"]
[Black "Horak, Martin"]
[WhiteFideId "35093290"]
[BlackFideId "367095"]
[WhiteElo "2083"]
[BlackElo "2091"]
[Result "1-0"]
[Round "08"]
[TimeControl "180+2"]
[Date "2023.05.02"]
[WhiteClock "0:00:10"]
[BlackClock "0:00:04"]

1. e4 {[%clk 0:03:00]}  c5 {[%clk 0:02:59]} 2. Nf3 {[%clk 0:03:00]}  a6 {[%clk 0:02:59]} 3. c3 {[%clk 0:02:59]}  d5 {[%clk 0:03:00]} 4. exd5 {[%clk 0:02:59]}  Qxd5 {[%clk 0:03:01]} 5. d4 {[%clk 0:03:00]}  e6 {[%clk 0:03:01]} 6. Be2 {[%clk 0:02:57]}  Nf6 {[%clk 0:03:01]} 7. O-O {[%clk 0:02:57]}  Be7 {[%clk 0:03:00]} 8. a3 {[%clk 0:02:55]}  O-O {[%clk 0:02:58]} 9. c4 {[%clk 0:02:53]}  Qc6 {[%clk 0:02:57]} 10. dxc5 {[%clk 0:02:51]}  Rd8 {[%clk 0:02:50]} 11. Qc2 {[%clk 0:02:49]}  Bxc5 {[%clk 0:02:47]} 12. b4 {[%clk 0:02:47]}  Be7 {[%clk 0:02:36]} 13. Nbd2 {[%clk 0:02:45]}  Nbd7 {[%clk 0:02:24]} 14. Bb2 {[%clk 0:02:44]}  b6 {[%clk 0:02:23]} 15. Nd4 {[%clk 0:02:41]}  Qc7 {[%clk 0:02:13]} 16. Bf3 {[%clk 0:02:38]}  Bb7 {[%clk 0:02:13]} 17. Rfe1 {[%clk 0:02:36]}  Bxf3 {[%clk 0:02:04]} 18. N2xf3 {[%clk 0:02:35]}  Rac8 {[%clk 0:02:03]} 19. Rac1 {[%clk 0:02:34]}  Bd6 {[%clk 0:01:23]} 20. h3 {[%clk 0:02:21]}  Ne5 {[%clk 0:01:07]} 21. Nxe5 {[%clk 0:02:00]}  Bxe5 {[%clk 0:01:08]} 22. Nf3 {[%clk 0:01:47]}  Bxb2 {[%clk 0:01:03]} 23. Qxb2 {[%clk 0:01:48]}  Qf4 {[%clk 0:01:02]} 24. Qb3 {[%clk 0:01:40]}  h6 {[%clk 0:01:00]} 25. Rc2 {[%clk 0:01:34]}  Rd6 {[%clk 0:00:49]} 26. c5 {[%clk 0:01:21]}  Rdc6 {[%clk 0:00:35]} 27. Ne5 {[%clk 0:01:16]}  R6c7 {[%clk 0:00:34]} 28. Rc4 {[%clk 0:01:11]}  Qd2 {[%clk 0:00:26]} 29. Nf3 {[%clk 0:01:06]}  Qd5 {[%clk 0:00:18]} 30. Re5 {[%clk 0:01:05]}  Qd7 {[%clk 0:00:15]} 31. Qc2 {[%clk 0:01:00]}  bxc5 {[%clk 0:00:15]} 32. Rexc5 {[%clk 0:00:59]}  Rxc5 {[%clk 0:00:15]} 33. Rxc5 {[%clk 0:01:00]}  Rd8 {[%clk 0:00:14]} 34. Rc6 {[%clk 0:00:56]}  Qb7 {[%clk 0:00:08]} 35. Rc7 {[%clk 0:00:51]}  Qb5 {[%clk 0:00:06]} 36. Qc3 {[%clk 0:00:41]}  Nd5 {[%clk 0:00:06]} 37. Qc5 {[%clk 0:00:31]}  Nxc7 {[%clk 0:00:06]} 38. Qxc7 {[%clk 0:00:32]}  Rd7 {[%clk 0:00:06]} 39. Qc8+ {[%clk 0:00:29]}  Kh7 {[%clk 0:00:07]} 40. Qc2+ {[%clk 0:00:20]}  g6 {[%clk 0:00:06]} 41. Qc3 {[%clk 0:00:19]}  Qd3 {[%clk 0:00:05]} 42. Qc8 {[%clk 0:00:18]}  Qd1+ {[%clk 0:00:04]} 43. Kh2 {[%clk 0:00:18]}  Qd6+ {[%clk 0:00:05]} 44. g3 {[%clk 0:00:16]}  Rc7 {[%clk 0:00:06]} 45. Qe8 {[%clk 0:00:15]}  Rc3 {[%clk 0:00:05]} 46. Qxf7+ {[%clk 0:00:11]}  Kh8 {[%clk 0:00:05]} 47. Qf6+ {[%clk 0:00:12]}  Kh7 {[%clk 0:00:05]} 48. Qxc3 {[%clk 0:00:13]}  Qd5 {[%clk 0:00:06]} 49. Ne5 {[%clk 0:00:13]}  Qe4 {[%clk 0:00:05]} 50. Kg1 {[%clk 0:00:12]}  h5 {[%clk 0:00:03]} 51. a4 {[%clk 0:00:12]}  Kh6 {[%clk 0:00:04]} 52. Qe3+ {[%clk 0:00:10]} 1-0


[Site "https://www.chess.com"]